[Event "Titled Tuesday Blitz February 14 Early 2023"]
[White "Kavutskiy, Konstantin"]
[Black "Skvortsov, Andrei"]
[WhiteFideId "2026384"]
[BlackFideId "24108600"]
[WhiteElo "2414"]
[BlackElo "2313"]
[Result "1-0"]
[Round "03"]
[TimeControl "180+2"]
[Date "2023.02.15"]
[WhiteClock "0:00:05"]
[BlackClock "0:00:02"]

1. d4 {[%clk 0:03:00]}  b5 {[%clk 0:02:59]} 2. e4 {[%clk 0:02:59]}  Bb7 {[%clk 0:02:56]} 3. Bd3 {[%clk 0:02:59]}  a6 {[%clk 0:02:49]} 4. Nd2 {[%clk 0:02:58]}  e6 {[%clk 0:02:50]} 5. Qe2 {[%clk 0:02:57]}  c5 {[%clk 0:02:50]} 6. c3 {[%clk 0:02:55]}  Nc6 {[%clk 0:02:48]} 7. Ngf3 {[%clk 0:02:52]}  cxd4 {[%clk 0:02:45]} 8. cxd4 {[%clk 0:02:51]}  Nf6 {[%clk 0:02:43]} 9. O-O {[%clk 0:02:47]}  Rc8 {[%clk 0:02:38]} 10. a3 {[%clk 0:02:44]}  d6 {[%clk 0:02:34]} 11. d5 {[%clk 0:02:33]}  Nb8 {[%clk 0:02:29]} 12. dxe6 {[%clk 0:02:25]}  fxe6 {[%clk 0:02:30]} 13. e5 {[%clk 0:02:24]}  dxe5 {[%clk 0:02:29]} 14. Nxe5 {[%clk 0:02:19]}  Bd6 {[%clk 0:02:23]} 15. Ndf3 {[%clk 0:01:46]}  O-O {[%clk 0:02:19]} 16. b4 {[%clk 0:01:38]}  Qe7 {[%clk 0:02:03]} 17. Bb2 {[%clk 0:01:34]}  Nc6 {[%clk 0:01:58]} 18. Ng5 {[%clk 0:01:25]}  Nxe5 {[%clk 0:01:55]} 19. Bxe5 {[%clk 0:01:25]}  Bxe5 {[%clk 0:01:45]} 20. Qxe5 {[%clk 0:01:26]}  Rfd8 {[%clk 0:01:42]} 21. Rad1 {[%clk 0:01:15]}  Bd5 {[%clk 0:01:18]} 22. Rfe1 {[%clk 0:01:15]}  Re8 {[%clk 0:01:09]} 23. h3 {[%clk 0:01:04]}  Qc7 {[%clk 0:01:07]} 24. Qxc7 {[%clk 0:00:59]}  Rxc7 {[%clk 0:01:08]} 25. Nxh7 {[%clk 0:00:58]}  Nxh7 {[%clk 0:01:03]} 26. Bxh7+ {[%clk 0:00:59]}  Kxh7 {[%clk 0:01:03]} 27. Rxd5 {[%clk 0:00:59]}  exd5 {[%clk 0:00:55]} 28. Rxe8 {[%clk 0:00:59]}  Rc3 {[%clk 0:00:56]} 29. Rd8 {[%clk 0:00:55]}  Rxa3 {[%clk 0:00:55]} 30. Rxd5 {[%clk 0:00:55]}  Ra4 {[%clk 0:00:55]} 31. Rd6 {[%clk 0:00:55]}  Ra2 {[%clk 0:00:53]} 32. g3 {[%clk 0:00:54]}  Kg8 {[%clk 0:00:51]} 33. Kg2 {[%clk 0:00:53]}  Kf7 {[%clk 0:00:50]} 34. Rb6 {[%clk 0:00:53]}  Ra4 {[%clk 0:00:50]} 35. h4 {[%clk 0:00:53]}  Kg8 {[%clk 0:00:50]} 36. h5 {[%clk 0:00:50]}  Kh8 {[%clk 0:00:48]} 37. h6 {[%clk 0:00:50]}  gxh6 {[%clk 0:00:48]} 38. Rxh6+ {[%clk 0:00:51]}  Kg7 {[%clk 0:00:49]} 39. Rb6 {[%clk 0:00:51]}  Kf7 {[%clk 0:00:48]} 40. f4 {[%clk 0:00:50]}  Rxb4 {[%clk 0:00:37]} 41. Rxa6 {[%clk 0:00:49]}  Rb1 {[%clk 0:00:35]} 42. Kf3 {[%clk 0:00:47]}  b4 {[%clk 0:00:35]} 43. Rb6 {[%clk 0:00:47]}  b3 {[%clk 0:00:35]} 44. Kg4 {[%clk 0:00:47]}  b2 {[%clk 0:00:32]} 45. f5 {[%clk 0:00:37]}  Ke7 {[%clk 0:00:32]} 46. Rb3 {[%clk 0:00:26]}  Kf6 {[%clk 0:00:30]} 47. Rb6+ {[%clk 0:00:26]}  Kf7 {[%clk 0:00:30]} 48. Kg5 {[%clk 0:00:23]}  Rg1 {[%clk 0:00:29]} 49. Rb7+ {[%clk 0:00:23]}  Kg8 {[%clk 0:00:27]} 50. Rxb2 {[%clk 0:00:21]}  Rxg3+ {[%clk 0:00:26]} 51. Kf6 {[%clk 0:00:21]}  Ra3 {[%clk 0:00:18]} 52. Rb8+ {[%clk 0:00:21]}  Kh7 {[%clk 0:00:18]} 53. Rb7+ {[%clk 0:00:21]}  Kg8 {[%clk 0:00:18]} 54. Rb6 {[%clk 0:00:21]}  Ra7 {[%clk 0:00:16]} 55. Rb8+ {[%clk 0:00:20]}  Kh7 {[%clk 0:00:16]} 56. Re8 {[%clk 0:00:20]}  Ra6+ {[%clk 0:00:16]} 57. Kf7 {[%clk 0:00:20]}  Rb6 {[%clk 0:00:14]} 58. f6 {[%clk 0:00:21]}  Ra6 {[%clk 0:00:13]} 59. Ke7 {[%clk 0:00:18]}  Ra7+ {[%clk 0:00:13]} 60. Ke6 {[%clk 0:00:14]}  Ra6+ {[%clk 0:00:12]} 61. Kf7 {[%clk 0:00:14]}  Ra7+ {[%clk 0:00:12]} 62. Re7 {[%clk 0:00:14]}  Ra6 {[%clk 0:00:12]} 63. Kf8+ {[%clk 0:00:11]}  Kg6 {[%clk 0:00:11]} 64. f7 {[%clk 0:00:12]}  Ra8+ {[%clk 0:00:08]} 65. Re8 {[%clk 0:00:12]}  Ra7 {[%clk 0:00:08]} 66. Re6+ {[%clk 0:00:09]}  Kf5 {[%clk 0:00:08]} 67. Re1 {[%clk 0:00:07]}  Kg6 {[%clk 0:00:07]} 68. Kg8 {[%clk 0:00:05]}  Rc7 {[%clk 0:00:02]} 69. f8=Q {[%clk 0:00:05]} 1-0


[Site "https://www.chess.com"]

[Event "Titled Tuesday Blitz February 14 Early 2023"]
[White "Khandelwal, Ankush"]
[Black "Aggelis, Nikolaos"]
[WhiteFideId "413470"]
[BlackFideId "4213220"]
[WhiteElo "2205"]
[BlackElo "2270"]
[Result "1-0"]
[Round "03"]
[TimeControl "180+2"]
[Date "2023.02.15"]
[WhiteClock "0:00:22"]
[BlackClock "0:00:47"]

1. d4 {[%clk 0:03:00]}  Nf6 {[%clk 0:02:57]} 2. Nc3 {[%clk 0:03:01]}  d5 {[%clk 0:02:57]} 3. Bf4 {[%clk 0:03:00]}  g6 {[%clk 0:02:51]} 4. Qd2 {[%clk 0:03:00]}  Bg7 {[%clk 0:02:51]} 5. Bh6 {[%clk 0:02:58]}  Kf8 {[%clk 0:02:46]} 6. h4 {[%clk 0:02:56]}  Ng4 {[%clk 0:02:44]} 7. Bxg7+ {[%clk 0:02:55]}  Kxg7 {[%clk 0:02:45]} 8. h5 {[%clk 0:02:53]}  c6 {[%clk 0:02:41]} 9. f3 {[%clk 0:02:40]}  Nf6 {[%clk 0:02:37]} 10. g4 {[%clk 0:02:39]}  Nbd7 {[%clk 0:02:31]} 11. O-O-O {[%clk 0:02:33]}  b5 {[%clk 0:02:30]} 12. Kb1 {[%clk 0:02:16]}  b4 {[%clk 0:02:28]} 13. Na4 {[%clk 0:02:16]}  Nb6 {[%clk 0:02:28]} 14. Nc5 {[%clk 0:02:02]}  a5 {[%clk 0:02:27]} 15. h6+ {[%clk 0:01:39]}  Kg8 {[%clk 0:02:22]} 16. g5 {[%clk 0:01:40]}  Nfd7 {[%clk 0:02:22]} 17. e4 {[%clk 0:01:39]}  e6 {[%clk 0:02:20]} 18. Qf4 {[%clk 0:01:18]}  Nxc5 {[%clk 0:02:18]} 19. Qe5 {[%clk 0:01:08]}  f6 {[%clk 0:02:17]} 20. gxf6 {[%clk 0:01:08]}  Kf7 {[%clk 0:02:14]} 21. dxc5 {[%clk 0:01:08]}  Nd7 {[%clk 0:02:14]} 22. Qd6 {[%clk 0:01:06]}  Qe8 {[%clk 0:02:12]} 23. Nh3 {[%clk 0:01:03]}  Nxf6 {[%clk 0:01:54]} 24. Ng5+ {[%clk 0:01:02]}  Kg8 {[%clk 0:01:54]} 25. exd5 {[%clk 0:00:41]}  Nxd5 {[%clk 0:01:48]} 26. Qe5 {[%clk 0:00:29]}  Ra7 {[%clk 0:01:47]} 27. Bc4 {[%clk 0:00:27]}  Qe7 {[%clk 0:01:39]} 28. Bxd5 {[%clk 0:00:27]}  exd5 {[%clk 0:01:39]} 29. Qf4 {[%clk 0:00:27]}  Qc7 {[%clk 0:01:27]} 30. Qd4 {[%clk 0:00:25]}  Bf5 {[%clk 0:01:26]} 31. Rhe1 {[%clk 0:00:24]}  Ra8 {[%clk 0:01:22]} 32. Qf6 {[%clk 0:00:24]}  Rf8 {[%clk 0:01:19]} 33. Qe7 {[%clk 0:00:22]}  Qxe7 {[%clk 0:01:02]} 34. Rxe7 {[%clk 0:00:23]}  Rc8 {[%clk 0:00:51]} 35. Rde1 {[%clk 0:00:23]}  a4 {[%clk 0:00:47]} 36. Re8+ {[%clk 0:00:22]} 1-0


[Site "https://www.chess.com"]

[Event "Titled Tuesday Blitz February 14 Early 2023"]
[White "Cunha, Lucas Aguiar"]
[Black "Bychkov, Vladimir"]
[WhiteFideId "2125404"]
[BlackFideId "24151513"]
[WhiteElo "2309"]
[BlackElo "2225"]
[Result "0-1"]
[Round "03"]
[TimeControl "180+2"]
[Date "2023.02.15"]
[WhiteClock "0:00:05"]
[BlackClock "0:00:07"]

1. e4 {[%clk 0:03:00]}  c6 {[%clk 0:02:59]} 2. d4 {[%clk 0:03:00]}  d5 {[%clk 0:03:00]} 3. e5 {[%clk 0:03:00]}  Bf5 {[%clk 0:03:00]} 4. Nf3 {[%clk 0:03:00]}  e6 {[%clk 0:03:00]} 5. Be2 {[%clk 0:03:00]}  Nd7 {[%clk 0:02:58]} 6. O-O {[%clk 0:03:01]}  Ne7 {[%clk 0:02:58]} 7. Nbd2 {[%clk 0:02:59]}  h6 {[%clk 0:02:58]} 8. Nb3 {[%clk 0:02:59]}  a6 {[%clk 0:02:58]} 9. a4 {[%clk 0:02:59]}  Bh7 {[%clk 0:02:59]} 10. a5 {[%clk 0:02:59]}  Nf5 {[%clk 0:02:59]} 11. Bd2 {[%clk 0:02:59]}  c5 {[%clk 0:02:59]} 12. c4 {[%clk 0:02:57]}  dxc4 {[%clk 0:02:53]} 13. Bxc4 {[%clk 0:02:58]}  cxd4 {[%clk 0:02:52]} 14. Re1 {[%clk 0:02:34]}  Rc8 {[%clk 0:02:50]} 15. Rc1 {[%clk 0:02:30]}  Be7 {[%clk 0:02:48]} 16. Nfxd4 {[%clk 0:02:04]}  Nxd4 {[%clk 0:02:42]} 17. Nxd4 {[%clk 0:02:05]}  O-O {[%clk 0:02:26]} 18. b3 {[%clk 0:01:52]}  Nc5 {[%clk 0:02:22]} 19. Be3 {[%clk 0:01:40]}  Qxa5 {[%clk 0:02:14]} 20. Qg4 {[%clk 0:01:36]}  Kh8 {[%clk 0:02:10]} 21. Rcd1 {[%clk 0:01:23]}  b5 {[%clk 0:01:55]} 22. Bf1 {[%clk 0:01:22]}  Qb4 {[%clk 0:01:43]} 23. Qf3 {[%clk 0:01:19]}  Nxb3 {[%clk 0:01:27]} 24. Nc6 {[%clk 0:01:18]}  Qa3 {[%clk 0:01:20]} 25. Bc1 {[%clk 0:01:16]}  Nxc1 {[%clk 0:01:18]} 26. Nxe7 {[%clk 0:01:12]}  Qxe7 {[%clk 0:01:13]} 27. Rxc1 {[%clk 0:01:12]}  Qa7 {[%clk 0:00:51]} 28. Ra1 {[%clk 0:01:07]}  Qb6 {[%clk 0:00:50]} 29. Qa3 {[%clk 0:01:04]}  Ra8 {[%clk 0:00:43]} 30. Red1 {[%clk 0:01:04]}  b4 {[%clk 0:00:41]} 31. Qb3 {[%clk 0:01:01]}  a5 {[%clk 0:00:40]} 32. Rd6 {[%clk 0:00:59]}  Qc5 {[%clk 0:00:37]} 33. Qb2 {[%clk 0:00:36]}  a4 {[%clk 0:00:36]} 34. Rc1 {[%clk 0:00:36]}  a3 {[%clk 0:00:33]} 35. Qa1 {[%clk 0:00:36]}  Qxc1 {[%clk 0:00:24]} 36. Qxc1 {[%clk 0:00:35]}  b3 {[%clk 0:00:25]} 37. Rb6 {[%clk 0:00:33]}  Rfb8 {[%clk 0:00:21]} 38. Qxa3 {[%clk 0:00:19]}  Rxa3 {[%clk 0:00:20]} 39. Rxb8+ {[%clk 0:00:19]}  Bg8 {[%clk 0:00:20]} 40. g3 {[%clk 0:00:19]}  g5 {[%clk 0:00:17]} 41. Bc4 {[%clk 0:00:19]}  Kg7 {[%clk 0:00:16]} 42. Bxb3 {[%clk 0:00:18]}  Ra5 {[%clk 0:00:15]} 43. f4 {[%clk 0:00:18]}  Bh7 {[%clk 0:00:15]} 44. Kf2 {[%clk 0:00:17]}  Be4 {[%clk 0:00:12]} 45. Ke3 {[%clk 0:00:16]}  Bf5 {[%clk 0:00:11]} 46. Rb7 {[%clk 0:00:15]}  gxf4+ {[%clk 0:00:11]} 47. Kxf4 {[%clk 0:00:15]}  Ra1 {[%clk 0:00:11]} 48. Bc4 {[%clk 0:00:12]}  Rc1 {[%clk 0:00:10]} 49. Be2 {[%clk 0:00:09]}  Re1 {[%clk 0:00:10]} 50. Rb2 {[%clk 0:00:07]}  Rh1 {[%clk 0:00:09]} 51. g4 {[%clk 0:00:07]}  Bg6 {[%clk 0:00:09]} 52. Bf3 {[%clk 0:00:07]}  Rf1 {[%clk 0:00:09]} 53. Kg3 {[%clk 0:00:07]}  Re1 {[%clk 0:00:08]} 54. Kf4 {[%clk 0:00:07]}  Rc1 {[%clk 0:00:09]} 55. h4 {[%clk 0:00:06]}  Rc4+ {[%clk 0:00:09]} 56. Kg3 {[%clk 0:00:07]}  h5 {[%clk 0:00:09]} 57. gxh5 {[%clk 0:00:07]}  Bf5 {[%clk 0:00:10]} 58. Rb3 {[%clk 0:00:06]}  Kh6 {[%clk 0:00:09]} 59. Re3 {[%clk 0:00:06]}  Rc5 {[%clk 0:00:09]} 60. Be2 {[%clk 0:00:06]}  Bh7 {[%clk 0:00:08]} 61. Kf4 {[%clk 0:00:06]}  Bf5 {[%clk 0:00:07]} 62. Bf1 {[%clk 0:00:05]}  Ra5 {[%clk 0:00:07]} 63. Be2 {[%clk 0:00:05]}  Ra4+ {[%clk 0:00:08]} 64. Kg3 {[%clk 0:00:06]}  Rd4 {[%clk 0:00:08]} 65. Rc3 {[%clk 0:00:06]}  Re4 {[%clk 0:00:07]} 66. Bf3 {[%clk 0:00:05]}  Rxe5 {[%clk 0:00:08]} 67. Rc7 {[%clk 0:00:06]}  Kg7 {[%clk 0:00:08]} 68. Kf4 {[%clk 0:00:04]}  Ra5 {[%clk 0:00:07]} 69. h6+ {[%clk 0:00:05]}  Kf6 {[%clk 0:00:07]} 70. Rc8 {[%clk 0:00:03]}  Ra4+ {[%clk 0:00:07]} 71. Kg3 {[%clk 0:00:03]}  Ra3 {[%clk 0:00:08]} 72. Kf2 {[%clk 0:00:03]}  Ke5 {[%clk 0:00:07]} 73. Rg8 {[%clk 0:00:02]}  Kf4 {[%clk 0:00:07]} 74. Be2 {[%clk 0:00:02]}  Ra2 {[%clk 0:00:08]} 75. Ke1 {[%clk 0:00:02]}  Ke3 {[%clk 0:00:07]} 76. Rg3+ {[%clk 0:00:02]}  Kf4 {[%clk 0:00:08]} 77. Rb3 {[%clk 0:00:03]}  Ke5 {[%clk 0:00:08]} 78. Rf3 {[%clk 0:00:03]}  Be4 {[%clk 0:00:07]} 79. Re3 {[%clk 0:00:03]}  Kf4 {[%clk 0:00:07]} 80. Rc3 {[%clk 0:00:03]}  Ra1+ {[%clk 0:00:07]} 81. Kf2 {[%clk 0:00:04]}  Rh1 {[%clk 0:00:08]} 82. Bf1 {[%clk 0:00:02]}  Rh2+ {[%clk 0:00:07]} 83. Kg1 {[%clk 0:00:02]}  Rxh4 {[%clk 0:00:08]} 84. Rh3 {[%clk 0:00:03]}  Rxh3 {[%clk 0:00:07]} 85. Bxh3 {[%clk 0:00:04]}  Kg5 {[%clk 0:00:07]} 86. Kf2 {[%clk 0:00:04]}  Kxh6 {[%clk 0:00:08]} 87. Ke3 {[%clk 0:00:05]}  Bd5 {[%clk 0:00:08]} 88. Kf4 {[%clk 0:00:05]}  Kg7 {[%clk 0:00:08]} 89. Ke5 {[%clk 0:00:05]}  f6+ {[%clk 0:00:07]} 90. Kd6 {[%clk 0:00:05]}  Kf7 {[%clk 0:00:08]} 91. Bg4 {[%clk 0:00:04]}  Ba2 {[%clk 0:00:08]} 92. Bh3 {[%clk 0:00:04]}  e5 {[%clk 0:00:08]} 93. Bf5 {[%clk 0:00:04]}  Bb3 {[%clk 0:00:08]} 94. Kc5 {[%clk 0:00:04]}  Be6 {[%clk 0:00:07]} 95. Kd6 {[%clk 0:00:05]}  Bxf5 {[%clk 0:00:07]} 0-1


[Site "https://www.chess.com"]

[Event "Titled Tuesday Blitz February 14 Early 2023"]
[White "Panesso Rivera, Henry"]
[Black "Fernandez Garcia, Gumersindo"]
[WhiteFideId "4402707"]
[BlackFideId "24516740"]
[WhiteElo "2342"]
[BlackElo "2160"]
[Result "1-0"]
[Round "03"]
[TimeControl "180+2"]
[Date "2023.02.15"]
[WhiteClock "0:01:29"]
[BlackClock "0:00:03"]

1. Nf3 {[%clk 0:03:00]}  Nf6 {[%clk 0:02:58]} 2. b3 {[%clk 0:02:57]}  g6 {[%clk 0:02:57]} 3. Bb2 {[%clk 0:02:56]}  Bg7 {[%clk 0:02:57]} 4. g3 {[%clk 0:02:56]}  d6 {[%clk 0:02:57]} 5. d4 {[%clk 0:02:55]}  O-O {[%clk 0:02:56]} 6. Bg2 {[%clk 0:02:55]}  c6 {[%clk 0:02:55]} 7. O-O {[%clk 0:02:54]}  Nbd7 {[%clk 0:02:54]} 8. Re1 {[%clk 0:02:53]}  Re8 {[%clk 0:02:54]} 9. e4 {[%clk 0:02:53]}  e5 {[%clk 0:02:45]} 10. dxe5 {[%clk 0:02:44]}  dxe5 {[%clk 0:02:42]} 11. a4 {[%clk 0:02:44]}  Qc7 {[%clk 0:02:41]} 12. Nbd2 {[%clk 0:02:43]}  a5 {[%clk 0:02:39]} 13. Nc4 {[%clk 0:02:42]}  b6 {[%clk 0:02:24]} 14. Qd6 {[%clk 0:02:34]}  Ra7 {[%clk 0:02:21]} 15. Qxc7 {[%clk 0:02:19]}  Rxc7 {[%clk 0:02:21]} 16. Rad1 {[%clk 0:02:20]}  Ba6 {[%clk 0:02:05]} 17. Nfxe5 {[%clk 0:02:08]}  b5 {[%clk 0:01:20]} 18. Nxd7 {[%clk 0:02:03]}  Rxd7 {[%clk 0:01:17]} 19. Nd6 {[%clk 0:01:57]}  bxa4 {[%clk 0:01:14]} 20. Nxe8 {[%clk 0:01:54]}  Rxd1 {[%clk 0:01:07]} 21. Rxd1 {[%clk 0:01:43]}  Nxe8 {[%clk 0:01:05]} 22. Ba3 {[%clk 0:01:34]}  Bf6 {[%clk 0:00:48]} 23. e5 {[%clk 0:01:33]}  Bxe5 {[%clk 0:00:04]} 24. Rd8 {[%clk 0:01:31]}  axb3 {[%clk 0:00:03]} 25. Rxe8+ {[%clk 0:01:29]}  Kg7 {[%clk 0:00:03]} 26. cxb3 {[%clk 0:01:29]} 1-0


[Site "https://www.chess.com"]

[Event "Titled Tuesday Blitz February 14 Early 2023"]
[White "Vlassov, Nikolai"]
[Black "Martic, Ivan"]
[WhiteFideId "4103360"]
[BlackFideId "929301"]
[WhiteElo "2283"]
[BlackElo "2301"]
[Result "1-0"]
[Round "03"]
[TimeControl "180+2"]
[Date "2023.02.15"]
[WhiteClock "0:00:08"]
[BlackClock "0:00:16"]

1. e4 {[%clk 0:03:00]}  d6 {[%clk 0:02:58]} 2. f4 {[%clk 0:03:00]}  g6 {[%clk 0:02:53]} 3. Nc3 {[%clk 0:03:00]}  Bg7 {[%clk 0:02:53]} 4. Nf3 {[%clk 0:03:00]}  c5 {[%clk 0:02:50]} 5. h3 {[%clk 0:02:58]}  Nc6 {[%clk 0:02:50]} 6. g4 {[%clk 0:02:58]}  a6 {[%clk 0:02:44]} 7. d3 {[%clk 0:02:57]}  b5 {[%clk 0:02:44]} 8. Bg2 {[%clk 0:02:58]}  Bb7 {[%clk 0:02:43]} 9. O-O {[%clk 0:02:57]}  Nf6 {[%clk 0:02:38]} 10. f5 {[%clk 0:02:55]}  Nd7 {[%clk 0:02:36]} 11. Qe1 {[%clk 0:02:50]}  Nd4 {[%clk 0:02:35]} 12. Rf2 {[%clk 0:02:34]}  O-O {[%clk 0:02:32]} 13. Nd1 {[%clk 0:02:27]}  Rc8 {[%clk 0:02:29]} 14. Nh2 {[%clk 0:02:22]}  b4 {[%clk 0:02:25]} 15. Be3 {[%clk 0:02:20]}  a5 {[%clk 0:02:24]} 16. c3 {[%clk 0:02:20]}  bxc3 {[%clk 0:02:25]} 17. bxc3 {[%clk 0:02:20]}  Nc6 {[%clk 0:02:24]} 18. Rb1 {[%clk 0:02:20]}  Ba6 {[%clk 0:02:24]} 19. Bf1 {[%clk 0:02:08]}  Rb8 {[%clk 0:02:18]} 20. Rfb2 {[%clk 0:02:07]}  Rxb2 {[%clk 0:02:16]} 21. Rxb2 {[%clk 0:02:07]}  Qc7 {[%clk 0:02:14]} 22. Qd2 {[%clk 0:02:06]}  Rb8 {[%clk 0:02:08]} 23. d4 {[%clk 0:02:05]}  Bxf1 {[%clk 0:02:06]} 24. Nxf1 {[%clk 0:02:06]}  cxd4 {[%clk 0:02:06]} 25. cxd4 {[%clk 0:02:05]}  Rxb2 {[%clk 0:02:01]} 26. Nxb2 {[%clk 0:02:04]}  Nb4 {[%clk 0:01:56]} 27. Nd3 {[%clk 0:01:45]}  Nc2 {[%clk 0:01:52]} 28. fxg6 {[%clk 0:01:20]}  hxg6 {[%clk 0:01:51]} 29. Nf4 {[%clk 0:01:13]}  Nxe3 {[%clk 0:01:48]} 30. Nxe3 {[%clk 0:01:13]}  e6 {[%clk 0:01:46]} 31. Kg2 {[%clk 0:00:58]}  Bh6 {[%clk 0:01:32]} 32. Kf3 {[%clk 0:00:53]}  Qb7 {[%clk 0:01:30]} 33. Qxa5 {[%clk 0:00:40]}  Qb1 {[%clk 0:01:13]} 34. Qd8+ {[%clk 0:00:34]}  Nf8 {[%clk 0:01:13]} 35. g5 {[%clk 0:00:35]}  Qh1+ {[%clk 0:01:10]} 36. Ke2 {[%clk 0:00:25]}  Qh2+ {[%clk 0:01:09]} 37. Neg2 {[%clk 0:00:24]}  Bg7 {[%clk 0:01:07]} 38. Qxd6 {[%clk 0:00:19]}  Qg3 {[%clk 0:01:06]} 39. a4 {[%clk 0:00:17]}  Qxg5 {[%clk 0:01:05]} 40. a5 {[%clk 0:00:17]}  Qxa5 {[%clk 0:01:04]} 41. Qc5 {[%clk 0:00:16]}  Qa2+ {[%clk 0:01:02]} 42. Kf3 {[%clk 0:00:16]}  Qb3+ {[%clk 0:01:01]} 43. Ne3 {[%clk 0:00:14]}  Qb2 {[%clk 0:00:56]} 44. Ne2 {[%clk 0:00:12]}  Qa1 {[%clk 0:00:54]} 45. Ng4 {[%clk 0:00:11]}  Qh1+ {[%clk 0:00:52]} 46. Kg3 {[%clk 0:00:10]}  Qe1+ {[%clk 0:00:52]} 47. Kf3 {[%clk 0:00:10]}  Qf1+ {[%clk 0:00:50]} 48. Nf2 {[%clk 0:00:09]}  Qa1 {[%clk 0:00:47]} 49. Ng3 {[%clk 0:00:09]}  Qb2 {[%clk 0:00:41]} 50. Ne2 {[%clk 0:00:08]}  Qd2 {[%clk 0:00:40]} 51. e5 {[%clk 0:00:08]}  Bh6 {[%clk 0:00:38]} 52. Ng4 {[%clk 0:00:06]}  Qd3+ {[%clk 0:00:38]} 53. Kf2 {[%clk 0:00:07]}  Qxh3 {[%clk 0:00:34]} 54. Nf6+ {[%clk 0:00:05]}  Kh8 {[%clk 0:00:33]} 55. Qe7 {[%clk 0:00:05]}  Qf5+ {[%clk 0:00:32]} 56. Ke1 {[%clk 0:00:05]}  Qb1+ {[%clk 0:00:32]} 57. Kf2 {[%clk 0:00:05]}  Qf5+ {[%clk 0:00:31]} 58. Ke1 {[%clk 0:00:06]}  Be3 {[%clk 0:00:29]} 59. Qxf7 {[%clk 0:00:05]}  Qb1+ {[%clk 0:00:28]} 60. Nc1 {[%clk 0:00:05]}  Qxc1+ {[%clk 0:00:28]} 61. Ke2 {[%clk 0:00:05]}  Qd2+ {[%clk 0:00:28]} 62. Kf3 {[%clk 0:00:06]}  Qf2+ {[%clk 0:00:28]} 63. Ke4 {[%clk 0:00:06]}  Qf4+ {[%clk 0:00:28]} 64. Kd3 {[%clk 0:00:06]}  Qf5+ {[%clk 0:00:22]} 65. Ke2 {[%clk 0:00:07]}  Qf2+ {[%clk 0:00:20]} 66. Kd3 {[%clk 0:00:07]}  Qf5+ {[%clk 0:00:20]} 67. Kxe3 {[%clk 0:00:07]}  Qg5+ {[%clk 0:00:19]} 68. Kd3 {[%clk 0:00:08]}  Qf5+ {[%clk 0:00:18]} 69. Kc3 {[%clk 0:00:08]}  Qf3+ {[%clk 0:00:18]} 70. Kb4 {[%clk 0:00:09]}  Qb7+ {[%clk 0:00:16]} 71. Qxb7 {[%clk 0:00:08]} 1-0


[Site "https://www.chess.com"]

[Event "Titled Tuesday Blitz February 14 Early 2023"]
[White "Koellner, Ruben Gideon"]
[Black "Fernandez, Michael"]
[WhiteFideId "12993093"]
[BlackFideId "5803560"]
[WhiteElo "2426"]
[BlackElo "2181"]
[Result "1-0"]
[Round "03"]
[TimeControl "180+2"]
[Date "2023.02.15"]
[WhiteClock "0:00:56"]
[BlackClock "0:00:04"]

1. d4 {[%clk 0:03:00]}  d5 {[%clk 0:02:59]} 2. Nf3 {[%clk 0:03:01]}  Nf6 {[%clk 0:02:58]} 3. e3 {[%clk 0:03:01]}  c5 {[%clk 0:02:57]} 4. c3 {[%clk 0:02:57]}  Nc6 {[%clk 0:02:57]} 5. Nbd2 {[%clk 0:02:56]}  Bg4 {[%clk 0:02:55]} 6. dxc5 {[%clk 0:02:48]}  e5 {[%clk 0:02:49]} 7. b4 {[%clk 0:02:43]}  e4 {[%clk 0:02:39]} 8. h3 {[%clk 0:02:40]}  Bh5 {[%clk 0:02:38]} 9. g4 {[%clk 0:02:39]}  Nxg4 {[%clk 0:02:37]} 10. hxg4 {[%clk 0:02:39]}  Bxg4 {[%clk 0:02:37]} 11. Qa4 {[%clk 0:02:30]}  Bxf3 {[%clk 0:02:21]} 12. Nxf3 {[%clk 0:02:28]}  exf3 {[%clk 0:02:21]} 13. Bb2 {[%clk 0:02:07]}  a6 {[%clk 0:02:14]} 14. O-O-O {[%clk 0:02:05]}  Qc7 {[%clk 0:01:24]} 15. Rxd5 {[%clk 0:01:49]}  Rd8 {[%clk 0:01:14]} 16. c4 {[%clk 0:01:41]}  Be7 {[%clk 0:00:56]} 17. Bxg7 {[%clk 0:01:26]}  Rg8 {[%clk 0:00:56]} 18. Rxh7 {[%clk 0:01:24]}  Bf8 {[%clk 0:00:15]} 19. Be5 {[%clk 0:01:18]}  Qe7 {[%clk 0:00:09]} 20. Bd6 {[%clk 0:00:59]}  Qf6 {[%clk 0:00:05]} 21. Re5+ {[%clk 0:00:57]}  Kd7 {[%clk 0:00:04]} 22. Bh3+ {[%clk 0:00:56]} 1-0


[Site "https://www.chess.com"]

[Event "Titled Tuesday Blitz February 14 Early 2023"]
[White "Buchenau, Frank"]
[Black "Domingo Nunez, Ruben"]
[WhiteFideId "4604350"]
[BlackFideId "22245570"]
[WhiteElo "2222"]
[BlackElo "2416"]
[Result "0-1"]
[Round "03"]
[TimeControl "180+2"]
[Date "2023.02.15"]
[WhiteClock "0:00:11"]
[BlackClock "0:00:11"]

1. e4 {[%clk 0:02:56]}  Nf6 {[%clk 0:02:59]} 2. e5 {[%clk 0:02:56]}  Nd5 {[%clk 0:02:59]} 3. d4 {[%clk 0:02:56]}  d6 {[%clk 0:03:00]} 4. Nf3 {[%clk 0:02:57]}  c6 {[%clk 0:02:58]} 5. c4 {[%clk 0:02:57]}  Nb6 {[%clk 0:02:59]} 6. exd6 {[%clk 0:02:49]}  exd6 {[%clk 0:02:58]} 7. Be2 {[%clk 0:02:45]}  Be7 {[%clk 0:02:57]} 8. O-O {[%clk 0:02:45]}  O-O {[%clk 0:02:58]} 9. h3 {[%clk 0:02:42]}  Bf5 {[%clk 0:02:54]} 10. Bd3 {[%clk 0:02:42]}  Qd7 {[%clk 0:02:51]} 11. Re1 {[%clk 0:02:38]}  Bf6 {[%clk 0:02:51]} 12. Nc3 {[%clk 0:02:35]}  Na6 {[%clk 0:02:50]} 13. Ne4 {[%clk 0:02:32]}  Be7 {[%clk 0:02:23]} 14. Ng3 {[%clk 0:02:18]}  Bxd3 {[%clk 0:02:21]} 15. Qxd3 {[%clk 0:02:19]}  Rfe8 {[%clk 0:02:21]} 16. b3 {[%clk 0:02:05]}  Nc7 {[%clk 0:01:45]} 17. Bg5 {[%clk 0:01:46]}  Bf8 {[%clk 0:01:41]} 18. Nf5 {[%clk 0:01:45]}  Ne6 {[%clk 0:01:34]} 19. Be3 {[%clk 0:01:45]}  Nc7 {[%clk 0:00:55]} 20. a4 {[%clk 0:01:42]}  Nc8 {[%clk 0:00:54]} 21. b4 {[%clk 0:01:38]}  Ne7 {[%clk 0:00:54]} 22. Ng3 {[%clk 0:01:26]}  g6 {[%clk 0:00:41]} 23. b5 {[%clk 0:01:19]}  Bg7 {[%clk 0:00:40]} 24. Rab1 {[%clk 0:01:18]}  Ne6 {[%clk 0:00:36]} 25. Rb3 {[%clk 0:01:06]}  cxb5 {[%clk 0:00:17]} 26. axb5 {[%clk 0:01:05]}  Qc7 {[%clk 0:00:11]} 27. Reb1 {[%clk 0:00:57]}  Rac8 {[%clk 0:00:11]} 28. Nd2 {[%clk 0:00:57]}  b6 {[%clk 0:00:09]} 29. Ra3 {[%clk 0:00:55]}  Qd7 {[%clk 0:00:08]} 30. Rba1 {[%clk 0:00:55]}  Rc7 {[%clk 0:00:09]} 31. R1a2 {[%clk 0:00:48]}  d5 {[%clk 0:00:09]} 32. c5 {[%clk 0:00:41]}  bxc5 {[%clk 0:00:10]} 33. dxc5 {[%clk 0:00:41]}  d4 {[%clk 0:00:11]} 34. c6 {[%clk 0:00:35]}  Qd5 {[%clk 0:00:11]} 35. Rxa7 {[%clk 0:00:27]}  Rxa7 {[%clk 0:00:10]} 36. Rxa7 {[%clk 0:00:28]}  dxe3 {[%clk 0:00:11]} 37. Qxd5 {[%clk 0:00:22]}  exf2+ {[%clk 0:00:09]} 38. Kxf2 {[%clk 0:00:22]}  Nxd5 {[%clk 0:00:09]} 39. Nc4 {[%clk 0:00:17]}  Bd4+ {[%clk 0:00:10]} 40. Kf3 {[%clk 0:00:14]}  Bxa7 {[%clk 0:00:11]} 41. Ne4 {[%clk 0:00:13]}  Nd4+ {[%clk 0:00:11]} 42. Kg3 {[%clk 0:00:12]}  Rxe4 {[%clk 0:00:11]} 43. Nd6 {[%clk 0:00:11]}  Bb8 {[%clk 0:00:11]} 0-1


[Site "https://www.chess.com"]